bitfinex/quotes_ETHUSD_20260216
["timestamp","ask_amount","ask_price","bid_price","bid_amount"]
[1771256029638,33.42033662,1945.0,1943.4,1.28640526]
[1771256029805,30.0,1944.9,1943.5,1.888]
[1771256030010,3.42033662,1945.0,1943.5,1.888]
[1771256030238,30.0,1944.9,1943.5,1.888]
[1771256030442,3.42033662,1945.0,1943.5,1.888]
[1771256031505,30.0,1944.7,1943.3,0.958]
[1771256031709,0.754,1944.7,1943.3,0.958]
[1771256032325,3.42033662,1945.4,1943.5,8.8968324]
[1771256032533,1.28495065,1945.6,1943.9,8.8968324]
[1771256032749,1.28495065,1945.6,1944.0,1.884]
[1771256033069,1.28495065,1945.6,1943.1,9.08368864]
[1771256033070,19.14833662,1945.5,1943.1,3.38129867]
[1771256033237,3.42033662,1945.5,1943.6,0.927]
[1771256033442,5.13980263,1945.8,1943.9,1.28607438]
[1771256033643,0.754,1945.8,1944.0,0.957]
[1771256034031,0.001,1945.9,1944.6,8.8968324]
[1771256034235,0.001,1945.9,1943.9,1.28607438]
[1771256034462,30.0,1945.7,1944.0,1.884]
[1771256034664,30.0,1945.6,1944.1,0.958]
[1771256034830,3.42033662,1945.7,1944.1,0.958]
[1771256035031,0.756,1945.9,1944.1,0.958]
[1771256035359,0.756,1945.9,1944.2,1.884]
[1771256035546,1.28481858,1945.8,1944.3,1.2858098]
[1771256037078,1.28481858,1945.8,1944.4,8.8968324]
[1771256037280,1.285753,1945.9,1944.4,8.8968324]
[1771256037578,0.001,1945.9,1944.5,1.881]
[1771256037780,0.001,1945.9,1944.6,1.881]
[1771256037984,0.001,1945.9,1944.7,0.954]
[1771256038501,0.001,1945.9,1944.1,5.14323921]
[1771256038673,0.001,1945.9,1944.7,0.927]
[1771256038897,0.001,1945.9,1944.2,3.38129867]
[1771256039113,33.42033662,1945.7,1944.0,0.927]
[1771256039269,30.0,1945.6,1944.2,0.954]
[1771256039666,33.42033662,1945.4,1943.9,0.953]
[1771256039977,0.753,1945.3,1943.9,0.953]
[1771256040362,4.17333662,1945.3,1943.2,4.66777013]
[1771256040564,30.0,1945.0,1943.3,7.02484982]
[1771256040762,0.754,1944.9,1943.3,7.02484982]
[1771256041384,3.42033662,1945.1,1943.3,7.02484982]
[1771256041590,0.754,1945.4,1943.6,1.28737289]
[1771256041964,30.0,1945.3,1943.7,0.953]
[1771256042182,12.31716902,1945.0,1943.6,0.0011]
[1771256042383,30.0,1944.5,1942.8,2.21375593]
[1771256042557,30.0,1944.3,1942.8,3.16675593]
[1771256042765,4.17633662,1944.4,1942.8,3.16678675]
[1771256043096,3.42033662,1944.1,1942.6,0.953]
[1771256043460,30.756,1944.0,1942.1,1.28726636]
[1771256043667,1.28607438,1943.9,1942.3,1.28713381]
[1771256043915,16.359,1943.6,1941.8,0.0011]
[1771256044076,0.757,1943.5,1941.9,2.23934491]
[1771256044404,12.789,1943.3,1941.9,0.952]
[1771256044600,11.105,1943.3,1941.8,1.28855546]
[1771256044807,33.42033662,1943.2,1941.8,0.0011]
[1771256044974,3.42033662,1943.2,1941.8,1.28855848]
[1771256045189,0.759,1943.2,1941.8,1.28855848]
[1771256045717,1.28660388,1943.1,1941.8,1.28855848]
[1771256046017,2.04558808,1943.2,1941.8,1.28855848]
[1771256046234,1.28658808,1943.2,1941.8,1.28855848]
[1771256046518,5.14360438,1944.3,1942.4,3.38129867]
[1771256046726,0.758,1944.6,1942.6,3.38129867]
[1771256047040,0.928,1945.5,1943.6,3.48369867]
[1771256047180,2.21302474,1945.5,1943.7,1.881]
[1771256047381,0.001,1945.5,1943.8,3.48369867]
[1771256047601,0.001,1945.5,1944.5,8.8968324]
[1771256047815,0.001,1945.5,1944.6,3.16761143]
[1771256048320,0.001,1945.5,1943.1,4.92521598]
[1771256048480,0.001,1945.5,1943.4,0.1024]
[1771256048679,33.42033662,1945.4,1943.2,5.14535631]
[1771256048920,33.42033662,1945.4,1943.0,5.14615067]
[1771256048921,30.0,1945.1,1943.3,1.882]
[1771256049079,6.63333662,1945.1,1943.0,1.28667009]
[1771256049291,3.42033662,1944.7,1942.6,5.14750684]
[1771256049596,30.0,1944.5,1942.9,0.927]
[1771256049793,33.42033662,1944.3,1942.5,1.28694712]
[1771256050011,3.42033662,1944.3,1942.6,1.885]
[1771256050327,1.28574367,1944.4,1942.6,1.885]
[1771256050812,5.90497469,1944.6,1942.9,8.8968324]
[1771256050813,1.28566099,1944.6,1942.9,8.8968324]
[1771256050999,1.28566099,1944.6,1943.0,1.884]
[1771256051201,1.28566099,1944.6,1942.6,3.48369867]
[1771256051405,1.28566099,1944.6,1943.0,8.8968324]
[1771256051594,1.28557249,1944.7,1943.0,8.8968324]
[1771256051915,5.85265829,1945.4,1943.4,12.27813107]
[1771256052088,1.28602838,1945.5,1943.8,8.8968324]
[1771256052484,0.001,1945.5,1943.8,8.8968324]
[1771256052720,0.001,1945.5,1944.3,3.48369867]
[1771256052906,0.001,1945.5,1944.4,0.957]
[1771256053107,0.001,1945.5,1944.4,1.884]
[1771256053294,1.2860437,1945.5,1944.5,1.884]
[1771256053499,1.2860437,1945.5,1943.8,12.27813107]
[1771256053797,0.001,1945.5,1944.0,1.28600823]
[1771256054297,0.001,1945.4,1944.1,1.884]
[1771256055006,3.69121542,1945.4,1943.9,0.927]
[1771256055206,3.69021542,1945.2,1943.9,0.927]
[1771256055407,30.0,1945.3,1943.9,0.927]
[1771256055725,1.28608275,1945.4,1944.0,1.28600823]
[1771256055929,1.28608275,1945.4,1944.1,0.956]
[1771256056120,1.28608275,1945.4,1943.5,1.28929248]
[1771256056310,1.28608275,1945.4,1943.6,1.883]
[1771256056732,1.28608275,1945.4,1943.5,1.28929248]
[1771256057030,1.28608275,1945.4,1943.7,0.956]
[1771256057240,1.28608275,1945.4,1943.6,8.85749815]
[1771256057401,1.28608275,1945.4,1943.5,1.28929248]
[1771256057605,1.28608275,1945.4,1943.6,1.884]
[1771256057801,1.28608275,1945.4,1943.7,1.28620671]
[1771256058229,0.001,1945.4,1943.8,3.84965143]
[1771256058429,0.001,1945.5,1944.5,8.85749815]
[1771256058608,0.001,1945.9,1944.6,1.884]
[1771256058805,0.001,1945.9,1944.9,12.70714958]
[1771256059005,1.28577951,1945.9,1945.0,1.884]
[1771256059317,0.001,1945.9,1945.0,1.884]
[1771256059533,0.001,1945.9,1945.1,0.47592649]
[1771256059832,0.001,1945.9,1945.3,1.28514882]
[1771256060032,0.001,1945.9,1945.4,2.35892649]
[1771256060335,0.001,1945.9,1945.5,0.47592649]
[1771256060635,0.001,1946.0,1945.6,0.47592649]
[1771256060848,0.001,1946.0,1944.5,0.1024]
[1771256061004,0.001,1946.0,1944.8,1.7610836]
[1771256061342,0.001,1946.0,1944.9,2.35860438]
[1771256061548,0.001,1946.0,1945.0,1.40160438]
[1771256061836,0.001,1946.0,1944.5,5.14257349]
[1771256061837,0.001,1946.0,1944.8,0.957]
[1771256062203,0.001,1946.0,1944.1,1.28594208]
[1771256062405,0.001,1946.0,1944.3,3.84965143]
[1771256062610,0.001,1946.0,1944.5,12.70714958]
[1771256063044,0.001,1946.0,1944.6,5.73165143]
[1771256063220,0.001,1946.0,1944.9,12.70714958]
[1771256063423,0.001,1946.0,1945.0,3.84965143]
[1771256063636,1.28409266,1946.9,1945.1,0.957]
[1771256063827,5.13487217,1947.5,1945.4,1.28508275]
[1771256064136,5.13478818,1948.0,1946.1,8.85749815]
[1771256064137,1.28343344,1948.0,1946.1,8.85749815]
[1771256064444,12.54771357,1947.4,1945.5,0.926]
[1771256064637,30.0,1947.2,1945.8,0.957]
[1771256064835,4.61621542,1947.4,1945.4,1.28508275]
[1771256065035,4.61621542,1947.4,1945.5,1.883]
[1771256065612,4.61621542,1947.4,1945.4,1.28508275]
[1771256065817,4.61621542,1947.4,1945.0,5.14033103]
[1771256065818,30.0,1946.8,1945.0,1.28534704]
[1771256066018,1.28396076,1947.1,1945.1,1.883]
[1771256066350,30.0,1946.9,1945.0,1.28534704]
[1771256066556,0.763,1946.8,1945.0,1.28534704]
[1771256066757,1.28396076,1947.1,1945.1,1.884]
[1771256066974,33.69021542,1947.0,1945.0,1.28534704]
[1771256067158,33.69021542,1946.9,1945.0,1.28534704]
[1771256067471,30.0,1946.8,1945.1,1.885]
[1771256067753,1.28396076,1947.1,1945.1,1.885]
[1771256067973,4.97417618,1947.1,1945.2,1.28521488]
[1771256068150,0.001,1946.8,1945.3,0.926]
[1771256068525,0.001,1946.8,1945.2,2.24321488]
[1771256068526,0.001,1946.8,1945.4,1.884]
[1771256068872,0.001,1946.8,1945.5,0.958]
[1771256069021,0.001,1946.8,1945.5,1.884]
[1771256069452,3.69121542,1946.8,1945.6,0.958]
[1771256069827,3.69021542,1946.6,1945.5,0.957]
[1771256070032,1.28435653,1946.5,1945.5,0.957]
[1771256070216,1.28435653,1946.5,1945.2,1.28518623]
[1771256070524,1.28435653,1946.5,1945.3,1.883]
[1771256070725,1.28435653,1946.5,1944.7,5.14207015]
[1771256070949,1.28435653,1946.5,1944.8,1.883]
[1771256071122,1.28435653,1946.5,1944.7,1.28554532]
[1771256071451,1.28435653,1946.5,1944.8,1.882]
[1771256072265,1.28435653,1946.5,1944.9,1.28541313]
[1771256072441,4.97457195,1946.5,1944.9,1.28541313]
[1771256072640,1.28435653,1946.5,1945.0,1.882]
[1771256073051,1.28422458,1946.7,1945.1,8.85749815]
[1771256073349,1.28422458,1946.7,1945.2,1.88]
[1771256073548,1.28422458,1946.7,1944.7,5.14207366]
[1771256073722,4.45521542,1946.6,1944.8,0.4738103]
[1771256073925,4.45521542,1946.6,1944.9,2.3538103]
[1771256074250,1.28435653,1946.5,1945.1,1.28528096]
[1771256074454,1.28435653,1946.5,1945.2,0.4738103]
[1771256074760,1.28435653,1946.5,1945.3,1.879]
[1771256075054,1.28435653,1946.5,1945.4,0.47430151]
[1771256075350,1.28435653,1946.5,1945.5,0.47430151]
[1771256075653,1.28435653,1946.5,1945.4,0.926]
[1771256075947,4.97457195,1946.5,1945.4,0.953]
[1771256076124,4.45421542,1946.4,1944.6,0.0011]
[1771256076325,3.69021542,1946.2,1944.7,2.35465144]
[1771256076551,3.69021542,1946.2,1944.8,0.47665144]
[1771256076850,3.69021542,1946.2,1944.9,0.954]
[1771256077060,6.06342614,1946.7,1944.9,0.954]
[1771256077061,0.001,1946.8,1945.5,3.84965143]
[1771256077258,1.28515988,1946.8,1945.6,0.47665144]
[1771256077552,0.001,1946.8,1945.7,1.883]
[1771256077767,0.001,1946.8,1945.8,0.957]
[1771256077961,0.001,1946.8,1945.9,13.99714958]
[1771256078262,1.28356523,1947.7,1946.0,5.13433796]
[1771256078447,1.28356523,1947.7,1946.1,1.883]
[1771256078760,1.28356523,1947.7,1946.2,3.84965143]
[1771256078958,1.28356523,1947.7,1946.3,0.957]
[1771256079256,1.28356523,1947.7,1946.0,1.28468653]
[1771256079430,1.28356523,1947.7,1946.1,0.957]
[1771256079636,4.97378065,1947.7,1946.2,1.883]
[1771256079855,3.69021542,1947.5,1945.4,5.14006682]
[1771256080174,1.28376296,1947.4,1945.6,1.28495065]
[1771256080350,0.77,1947.3,1945.6,1.28495065]
[1771256080754,0.001,1946.7,1945.3,1.28508275]
[1771256080939,4.46121542,1946.7,1945.3,0.956]
[1771256081631,0.001,1946.7,1945.1,1.28523011]
[1771256082236,0.001,1946.7,1945.2,1.881]
[1771256082478,0.001,1946.7,1945.3,1.881]
[1771256083673,0.001,1946.7,1945.4,1.879]
[1771256083880,0.767,1946.6,1945.0,0.9541]
[1771256084082,3.93531835,1946.7,1945.0,0.9541]
[1771256084383,1.28429055,1946.6,1945.1,3.16328096]
[1771256084582,5.9846089,1946.6,1945.1,1.28528096]
[1771256084755,3.93431835,1946.4,1945.0,1.8791]
[1771256084956,3.93431835,1946.2,1945.0,0.0011]
[1771256086079,4.70031835,1946.1,1945.0,0.0011]
[1771256086389,1.28468653,1946.0,1945.0,0.0011]
[1771256087107,3.93431835,1945.5,1944.5,0.0011]
[1771256087404,3.93431835,1944.8,1943.5,1.28932933]
[1771256087611,3.87306067,1945.4,1943.8,0.926]
[1771256087893,3.87306067,1945.2,1943.7,0.95]
[1771256088191,4.79906067,1945.2,1943.5,1.28932933]
[1771256088359,5.1584738,1944.9,1943.5,0.003]
[1771256088881,1.28541313,1944.9,1943.5,0.003]
[1771256089058,33.87306067,1944.8,1943.5,0.003]
[1771256089387,3.87306067,1944.8,1943.5,0.003]
[1771256090283,3.87006067,1944.8,1943.5,0.003]
[1771256090498,1.28554532,1944.7,1943.5,0.003]
[1771256090711,1.28554532,1944.7,1943.2,1.28205566]
[1771256090987,1.28534704,1945.0,1943.4,3.76452115]
[1771256091160,1.28534704,1945.0,1943.5,0.945]
[1771256091503,1.28534704,1945.0,1943.6,1.871]
[1771256091800,3.87306067,1944.9,1943.4,1.871]
[1771256092290,3.87306067,1944.9,1943.2,1.28205566]
[1771256092291,3.87306067,1944.9,1943.1,0.0011]
[1771256092497,3.87306067,1944.8,1943.1,3.15766806]
[1771256092661,2.05254532,1944.7,1943.1,3.15766806]
[1771256093113,2.05254532,1944.7,1943.1,1.28766806]
[1771256093421,2.05254532,1944.7,1943.2,1.87]
[1771256093618,2.05254532,1944.7,1943.6,0.0011]
[1771256094296,5.92560599,1944.7,1943.6,0.0011]
[1771256094494,3.87306067,1944.6,1943.6,0.0011]
[1771256094695,1.28567755,1944.5,1943.6,0.0011]
[1771256096715,5.1427102,1944.6,1943.6,0.0011]
[1771256098195,9.01550641,1945.0,1943.6,0.0011]
[1771256098196,1.28528096,1945.1,1943.7,0.927]
[1771256098430,1.28488461,1945.7,1943.9,3.76452115]
[1771256098627,3.87306067,1946.1,1944.0,5.14297469]
[1771256098925,3.87306067,1945.9,1944.0,3.14900823]
[1771256099092,3.87306067,1945.7,1944.0,3.14900823]
[1771256099496,1.694,1945.8,1943.6,0.0011]
[1771256099497,30.0,1945.1,1943.6,0.0011]
[1771256099734,4.64106067,1945.0,1943.6,0.0011]
[1771256100030,4.64106067,1945.0,1943.6,1.2873728]
[1771256100325,4.64106067,1945.0,1943.6,0.0011]
[1771256100535,3.87306067,1944.6,1943.3,0.0011]
[1771256100695,3.87306067,1944.4,1943.0,0.0011]
[1771256100903,3.87306067,1944.0,1941.8,3.76452115]
[1771256101098,3.87306067,1943.6,1941.5,0.927]
[1771256101315,3.87306067,1942.6,1940.8,0.927]
[1771256101507,5.56906067,1942.5,1940.8,2.21508507]
[1771256101821,5.56906067,1942.5,1940.5,6.08851442]
[1771256101822,3.87306067,1942.3,1940.3,1.28839414]
[1771256102038,33.87306067,1941.8,1939.6,1.28892555]
[1771256102195,3.87306067,1941.2,1939.2,5.15649976]
[1771256102394,0.77,1941.1,1939.2,5.15649976]
[1771256102605,5.16026075,1942.3,1940.1,3.76452115]
[1771256102801,23.56106067,1942.1,1939.9,3.76452115]
[1771256103015,30.0,1941.8,1939.8,1.28879265]
[1771256103204,3.87306067,1941.8,1939.8,1.28879265]
[1771256103406,0.773,1941.7,1940.0,8.85749815]
[1771256103702,0.773,1941.9,1940.1,1.867]
[1771256103902,5.14889844,1942.2,1940.2,1.867]
[1771256104229,5.14659056,1943.1,1940.9,3.76452115]
[1771256104399,0.774,1943.1,1941.1,3.76452115]
[1771256104602,5.14583793,1943.4,1941.3,5.05231798]
[1771256104798,0.774,1943.4,1941.7,3.76452115]
[1771256105002,5.91909158,1943.8,1941.8,5.63252115]
[1771256105325,1.28587593,1944.2,1942.2,3.76452115]
[1771256105531,1.28579135,1944.4,1942.6,3.86692115]
[1771256105739,0.775,1944.8,1942.9,8.85749815]
[1771256106026,0.001,1944.6,1943.3,3.76452115]
[1771256106231,0.001,1944.6,1942.7,3.76452115]
[1771256106426,0.001,1944.6,1942.8,1.87]
[1771256106602,0.001,1944.6,1943.0,1.28667009]
[1771256106797,0.001,1944.6,1942.6,8.85749815]
[1771256107034,3.87306067,1944.3,1942.4,0.943]
[1771256107204,3.87306067,1943.9,1941.9,0.943]
[1771256107528,20.901,1943.1,1940.9,1.28806223]
[1771256107731,31.704,1943.0,1941.2,0.944]
[1771256107941,14.43455882,1943.0,1941.2,0.944]
[1771256108147,14.43455882,1943.0,1940.7,5.15224895]
[1771256108148,4.05991691,1942.5,1940.6,1.28819498]
[1771256108347,4.65206067,1942.4,1940.6,2.23319498]
[1771256108639,1.28713381,1942.3,1940.7,1.28819498]
[1771256109013,1.28713381,1942.3,1940.4,1.28839414]
[1771256109014,30.927,1942.2,1940.4,1.28839414]
[1771256109213,0.927,1942.2,1940.4,2.23439414]
[1771256110123,0.927,1942.2,1940.4,1.28839414]
[1771256110335,30.0,1942.1,1940.3,2.2165546]
[1771256110528,0.78,1942.0,1940.4,0.946]
[1771256110832,5.14759361,1942.8,1940.5,5.0528489]
[1771256111014,2.06786879,1942.7,1940.7,8.85749815]
[1771256111213,2.06786879,1942.7,1940.6,3.76452115]
[1771256111464,30.0,1942.3,1940.4,0.927]
[1771256111614,3.87306067,1942.1,1940.4,2.21537272]
[1771256111816,0.18685624,1941.7,1940.3,0.0011]
[1771256112130,3.767,1941.5,1940.2,1.28961703]
[1771256112444,0.783,1941.6,1940.2,1.28851703]
[1771256112648,1.28766417,1941.5,1940.3,0.947]
[1771256113242,1.28766417,1941.5,1940.1,2.21558794]
[1771256113456,5.15022476,1941.7,1940.1,2.21558794]
[1771256113636,0.783,1941.9,1940.1,2.21558794]
[1771256114246,0.783,1941.9,1940.9,0.003]
[1771256114646,0.783,1941.9,1940.5,0.948]
[1771256114831,1.28746523,1941.8,1940.2,1.28849449]
[1771256115032,30.0,1941.7,1940.3,0.948]
[1771256115234,2.21433264,1942.1,1940.3,0.948]
[1771256115235,3.7796255,1943.5,1941.0,27.931411]
[1771256115436,20.5,1943.1,1941.4,29.679]
[1771256115751,1.54364447,1943.5,1942.2,30.0]
[1771256116058,0.787,1943.4,1942.1,0.95]
[1771256116230,0.787,1943.4,1941.9,0.928]
[1771256116231,0.787,1943.4,1942.2,0.95]
[1771256116554,0.787,1943.4,1936.7,15.12592948]
[1771256116555,33.15723977,1943.3,1941.0,3.84643728]
[1771256116862,20.5,1942.7,1941.2,0.928]
[1771256117019,1.28680255,1942.8,1941.2,2.21581383]
[1771256117835,1.28680255,1942.8,1941.2,2.21501383]
[1771256118148,1.28680255,1942.8,1941.2,0.951]
[1771256118452,1.28680255,1942.8,1941.3,0.0011]
[1771256118655,1.716,1942.7,1941.3,0.0011]
[1771256118840,20.5,1942.3,1941.2,0.0011]
[1771256119153,0.788,1942.2,1940.6,2.23824729]
[1771256119320,0.787,1942.1,1940.6,2.23824729]
[1771256119521,0.788,1942.5,1940.6,2.23824729]
[1771256119746,0.788,1942.5,1940.7,1.877]
[1771256120257,0.788,1942.5,1940.8,0.95]
[1771256120483,0.788,1942.5,1940.8,1.878]
[1771256120663,1.28693503,1942.6,1940.8,10.75561427]
[1771256120839,1.54532204,1943.1,1941.1,3.84643728]
[1771256120840,0.001,1943.1,1941.1,3.84643728]
[1771256121838,0.001,1943.1,1941.0,1.28799587]
[1771256122039,20.5,1942.5,1941.1,0.951]
[1771256122243,1.718,1942.4,1940.9,0.928]
[1771256122954,1.28713381,1942.3,1940.3,7.03304544]
[1771256123155,20.5,1942.2,1940.3,7.03064544]
[1771256123348,1.28713381,1942.3,1940.3,7.03064544]
[1771256123550,1.28713381,1942.3,1940.6,3.84643728]
[1771256123751,1.28680255,1942.8,1940.3,5.25304544]
[1771256123955,20.5,1942.6,1940.4,1.88]
[1771256124257,20.5,1942.6,1940.4,1.832]
[1771256124666,2.0,1942.6,1940.4,1.832]
[1771256124986,20.5,1942.4,1940.5,1.28832775]
[1771256125141,1.721,1942.3,1940.5,1.28672775]
[1771256125689,2.08100128,1942.5,1940.6,3.84643728]
[1771256126193,20.5,1942.4,1940.7,0.955]
[1771256126348,2.08100128,1942.5,1940.7,0.955]
[1771256126545,20.5,1942.4,1940.7,0.955]
[1771256126851,0.796,1942.3,1940.7,0.955]
[1771256127384,2.08286879,1942.7,1940.9,3.84643728]
[1771256127545,1.28667009,1943.0,1941.2,3.84643728]
[1771256127885,1.28761235,1943.1,1941.6,3.94883728]
[1771256128201,1.28761434,1943.1,1941.6,3.94883728]
[1771256128344,1.28761434,1943.1,1941.6,3.84643728]
[1771256128550,2.08461434,1943.1,1941.7,1.885]
[1771256128749,1.28761434,1943.1,1941.8,1.885]
[1771256129410,0.001,1943.1,1941.9,1.28739893]
[1771256129747,0.001,1943.1,1942.0,3.84643728]
[1771256129953,1.28640806,1943.4,1942.0,3.94883728]
[1771256130283,1.28567755,1944.5,1942.7,8.87761427]
[1771256130451,1.28567755,1944.5,1942.4,3.94883728]
[1771256130452,0.796,1944.4,1942.8,1.884]
[1771256130655,1.2866513,1944.6,1942.8,1.884]
[1771256130906,1.2866513,1944.6,1943.1,8.87761427]
[1771256131356,0.001,1944.6,1943.3,3.84643728]
[1771256131555,0.001,1944.6,1943.4,4.80243728]
[1771256131757,0.001,1944.6,1943.6,3.84643728]
[1771256131979,0.001,1944.6,1943.7,0.928]
[1771256132200,0.001,1944.6,1943.7,1.884]
[1771256133049,0.001,1944.6,1943.2,1.28653766]
[1771256133261,0.001,1944.6,1943.4,1.28640526]
[1771256133777,0.001,1944.6,1943.4,5.13284254]
[1771256134671,0.001,1944.6,1943.5,0.954]
[1771256134871,0.001,1944.6,1943.6,3.84643728]
[1771256135272,0.001,1944.6,1943.7,1.28620671]
[1771256135598,0.001,1944.6,1943.4,1.28640526]
[1771256135805,0.001,1944.6,1943.0,3.84643728]
[1771256135954,3.7796255,1944.4,1942.7,0.927]
[1771256136297,1.718,1944.3,1942.8,0.954]
[1771256136455,0.001,1944.6,1942.8,0.954]
[1771256136659,0.792,1944.6,1942.8,0.954]
[1771256136859,0.001,1944.6,1942.8,0.954]
[1771256137175,0.001,1944.6,1942.8,3.84643728]
[1771256137373,1.28567755,1944.5,1942.8,1.28675195]
[1771256137693,1.28567755,1944.5,1942.8,2.21375195]
[1771256138091,1.28567755,1944.5,1942.8,11.09136622]
[1771256138413,1.28567755,1944.5,1942.8,6.06018923]
[1771256138580,1.28567755,1944.5,1942.8,2.21375195]
[1771256138980,1.28567755,1944.5,1942.8,11.09136622]
[1771256139288,5.1437102,1944.6,1942.9,0.927]
[1771256139487,5.1437102,1944.6,1942.9,1.882]
[1771256139879,0.001,1944.6,1942.9,1.882]
[1771256140081,0.001,1944.6,1943.0,8.87761427]
[1771256140283,0.001,1944.6,1943.1,3.84643728]
[1771256140808,0.001,1944.6,1943.2,1.88]
[1771256141408,0.001,1944.6,1943.4,12.72405155]
[1771256141785,3.7796255,1945.5,1943.8,12.72405155]
[1771256141786,5.14022406,1945.5,1943.8,12.72405155]
[1771256142011,5.14022406,1945.5,1943.9,5.72643728]
[1771256142197,1.2850167,1945.5,1943.9,5.72643728]
[1771256142405,2.21189489,1945.7,1944.2,12.72405155]
[1771256142714,0.001,1946.7,1944.6,3.84643728]
[1771256143019,1.28527184,1946.7,1945.2,8.87761427]
[1771256143217,1.28527184,1946.7,1945.3,1.879]
[1771256143393,0.001,1946.7,1945.4,1.28508275]
[1771256143592,0.001,1946.7,1945.1,1.28528096]
[1771256143907,0.787,1946.6,1945.2,0.953]
[1771256144284,0.001,1946.7,1945.2,4.80009421]
[1771256144521,0.001,1946.7,1945.3,1.881]
[1771256145379,0.001,1946.7,1945.4,1.28508275]
[1771256147016,0.001,1946.7,1945.6,8.87761427]
[1771256147233,0.001,1946.7,1945.4,1.28508275]
[1771256147441,0.001,1946.7,1944.5,8.98905068]
[1771256147597,4.17098517,1946.5,1944.8,0.927]
[1771256147786,20.5,1946.6,1944.8,0.927]
[1771256147787,4.17098517,1946.2,1944.8,0.927]
[1771256147986,0.786,1946.1,1944.8,0.927]
[1771256148187,4.17098517,1946.2,1944.8,0.927]
[1771256148587,4.17098517,1946.2,1944.5,1.28567167]
[1771256148784,4.17098517,1945.7,1944.1,0.954]
[1771256149002,4.17098517,1946.2,1944.1,0.954]
[1771256149631,4.17098517,1946.2,1944.4,13.05405208]
[1771256149632,1.28462052,1946.1,1944.4,13.05405208]
[1771256149787,5.09798517,1946.7,1944.5,0.926]
[1771256149995,1.28435653,1946.5,1944.8,13.05405208]
[1771256150213,1.28526354,1946.7,1945.0,4.27883781]
[1771256150423,1.28526354,1946.7,1945.1,0.954]
[1771256150606,0.001,1946.7,1945.3,4.27883781]
[1771256150812,1.28523726,1946.7,1945.3,4.17643781]
[1771256151118,1.28526036,1946.7,1945.3,4.17643781]
[1771256151321,0.001,1946.7,1945.3,4.17643781]
[1771256151509,1.28523432,1946.7,1945.3,4.17643781]
[1771256151714,0.001,1946.7,1945.4,1.28508275]
[1771256152126,0.001,1946.7,1944.9,5.14141356]
[1771256152305,0.788,1946.7,1945.0,1.882]
[1771256152519,0.001,1946.7,1945.2,8.87761427]
[1771256153038,0.001,1946.7,1944.5,0.18685624]
[1771256153039,8.87761427,1946.5,1943.8,5.71978302]
[1771256153242,21.426,1946.6,1943.8,5.71978302]
[1771256153243,4.17098517,1946.0,1943.8,2.46934521]
[1771256153537,0.926,1945.9,1943.9,0.958]
[1771256153742,0.926,1945.9,1944.2,8.87761427]
[1771256153743,1.28481858,1945.8,1944.2,8.87761427]
[1771256154046,5.13769009,1946.5,1944.6,8.87761427]
[1771256154340,9.30867526,1946.5,1944.4,4.17643781]
[1771256154538,9.30867526,1946.5,1944.5,1.886]
[1771256154840,5.13769009,1946.5,1944.6,13.05405208]
[1771256155214,5.13769009,1946.5,1944.7,0.0011]
[1771256155626,5.13823654,1946.6,1945.1,1.28528096]
[1771256155807,5.13823654,1946.6,1945.2,1.888]
[1771256156538,5.13823654,1946.6,1945.1,1.28528096]
[1771256156848,5.13823654,1946.6,1945.2,1.888]
[1771256157064,1.28529055,1946.6,1945.2,1.888]
[1771256157360,1.28529055,1946.6,1945.3,0.962]
[1771256157516,2.07829055,1946.6,1945.3,0.962]
[1771256158120,2.07829055,1946.6,1945.3,2.2471265]
[1771256158318,2.07829055,1946.6,1945.3,0.962]
[1771256158845,2.07829055,1946.6,1945.3,2.24713643]
[1771256159048,2.07829055,1946.6,1945.3,0.962]
[1771256159262,25.59698517,1946.5,1945.1,0.926]
[1771256159465,4.17098517,1946.5,1945.1,2.21125974]
[1771256159763,1.28448851,1946.3,1945.1,2.21125974]
[1771256160414,1.28448851,1946.3,1944.7,5.14222384]
[1771256160415,4.17098517,1946.1,1944.7,0.0011]
[1771256160530,1.28448851,1946.3,1944.7,1.28663936]
[1771256160863,4.96598517,1946.0,1944.7,0.0011]
[1771256161069,4.17098517,1945.7,1942.9,9.3240016]
[1771256161232,0.796,1945.6,1943.5,7.35177688]
[1771256161561,5.09698517,1945.9,1943.5,3.17533907]
[1771256161562,13.04859944,1945.3,1943.5,3.17533907]
[1771256161717,4.17098517,1945.0,1943.5,1.889]
[1771256161922,0.797,1944.9,1943.5,3.17532131]
[1771256162420,1.28528096,1945.1,1943.5,3.17532794]
[1771256163023,1.28528096,1945.1,1943.5,7.35176575]
[1771256163220,1.28528096,1945.1,1943.5,3.17212794]
[1771256163421,1.28528096,1945.1,1943.5,1.28632794]
[1771256163616,1.28528096,1945.1,1943.6,0.964]
[1771256163953,9.31210901,1945.3,1943.7,1.28620671]
[1771256164177,4.17098517,1945.2,1943.5,1.28629129]
[1771256164319,20.5,1945.1,1943.5,0.963]
[1771256164526,4.17098517,1944.9,1943.3,2.21246295]
[1771256164716,0.795,1944.8,1943.3,2.21246295]
[1771256165748,1.28554532,1944.7,1943.3,2.21246443]
[1771256166057,1.28554532,1944.7,1943.3,0.926]
[1771256166259,4.17098517,1944.6,1943.3,0.926]
[1771256166628,4.17098517,1944.6,1943.3,2.21246269]
[1771256167353,4.17098517,1944.4,1942.9,0.0011]
[1771256167546,4.17098517,1944.4,1942.9,1.28782272]
[1771256168162,1.2858098,1944.3,1942.9,1.28782272]
[1771256168369,5.45679497,1944.3,1942.9,0.0011]
[1771256168553,13.04859944,1944.1,1942.9,0.0011]
[1771256168754,1.721,1944.0,1942.9,0.0011]
[1771256168937,1.721,1944.0,1942.8,1.28679966]
[1771256169146,4.17098517,1942.8,1940.5,6.39069917]
[1771256169353,4.17098517,1942.6,1940.6,5.15277992]